bitfinex/quotes_SOLUSD_20250708
["timestamp","ask_amount","ask_price","bid_price","bid_amount"]
[1751935449552,7.48554103,150.24,150.21,3.33177862]
[1751935449947,7.48554103,150.24,150.22,6.6569032]
[1751935450249,0.03,150.25,150.22,6.6569032]
[1751935450571,7.5145909,150.25,150.22,6.6569032]
[1751935451558,7.5145909,150.25,150.21,0.06]
[1751935451559,3.27177862,150.23,150.21,0.06]
[1751935451755,3.27177862,150.22,150.21,0.06]
[1751935452259,10.75734727,150.22,150.21,0.06]
[1751935452572,3.27177862,150.22,150.21,0.06]
[1751935452952,10.75734727,150.22,150.21,0.06]
[1751935453371,3.27177862,150.22,150.21,0.06]
[1751935453755,10.75734727,150.22,150.21,0.06]
[1751935454170,3.27177862,150.22,150.21,0.06]
[1751935454593,10.75734727,150.22,150.21,0.06]
[1751935455082,3.27177862,150.22,150.21,0.06]
[1751935455464,10.75734727,150.22,150.21,0.06]
[1751935455664,3.27177862,150.22,150.21,0.06]
[1751935456182,7.48556865,150.22,150.21,0.06]
[1751935456483,10.75734727,150.22,150.21,0.06]
[1751935456688,3.27177862,150.22,150.21,0.06]
[1751935457193,10.75734727,150.22,150.21,0.06]
[1751935457686,3.27177862,150.22,150.21,0.06]
[1751935458087,7.48556865,150.22,150.21,0.06]
[1751935458274,3.27177862,150.23,150.21,0.06]
[1751935458454,3.27177862,150.22,150.21,0.06]
[1751935459370,3.27177862,150.23,150.21,0.06]
[1751935459557,10.7529684,150.23,150.21,0.06]
[1751935459758,3.27177862,150.23,150.21,0.06]
[1751935459964,7.48081583,150.24,150.21,0.06]
[1751935460176,10.75259445,150.23,150.21,0.06]
[1751935460381,3.27177862,150.23,150.21,0.06]
[1751935460765,10.75229336,150.23,150.21,0.06]
[1751935460965,3.27177862,150.23,150.21,0.06]
[1751935461380,10.75229336,150.23,150.21,0.06]
[1751935461566,3.27177862,150.23,150.21,0.06]
[1751935461977,7.48027274,150.23,150.21,0.06]
[1751935462167,3.27177862,150.23,150.21,0.06]
[1751935462569,10.75187044,150.23,150.21,0.06]
[1751935462774,3.27177862,150.23,150.21,0.06]
[1751935463187,10.75145318,150.24,150.21,0.06]
[1751935464189,7.47967456,150.23,150.21,0.06]
[1751935464366,10.75145318,150.23,150.21,0.06]
[1751935464566,3.27177862,150.23,150.21,0.06]
[1751935466089,7.47991255,150.24,150.21,0.06]
[1751935466389,3.27177862,150.23,150.21,0.06]
[1751935468268,10.75169117,150.23,150.21,0.06]
[1751935468468,3.27177862,150.23,150.21,0.06]
[1751935469187,10.75240447,150.23,150.21,0.06]
[1751935469380,3.27177862,150.23,150.21,0.06]
[1751935469780,10.75227231,150.23,150.21,0.06]
[1751935469983,3.27177862,150.23,150.21,0.06]
[1751935470475,10.75227231,150.23,150.21,0.06]
[1751935470690,3.27177862,150.23,150.21,0.06]
[1751935471065,10.75248946,150.23,150.21,0.06]
[1751935471278,3.27177862,150.23,150.21,0.06]
[1751935471686,10.75306355,150.23,150.21,0.06]
[1751935471878,3.27177862,150.23,150.21,0.06]
[1751935472377,10.75306355,150.23,150.21,0.06]
[1751935472594,3.27177862,150.23,150.21,0.06]
[1751935473092,10.75370171,150.23,150.21,0.06]
[1751935473393,3.27177862,150.23,150.21,0.06]
[1751935473893,10.75419976,150.23,150.21,0.06]
[1751935474188,3.27177862,150.23,150.21,0.06]
[1751935474702,10.75474943,150.23,150.21,0.06]
[1751935474882,3.27177862,150.23,150.21,0.06]
[1751935475385,10.75474943,150.23,150.21,0.06]
[1751935475583,3.27177862,150.23,150.21,0.06]
[1751935475982,10.75536087,150.23,150.21,0.06]
[1751935476172,3.27177862,150.23,150.21,0.06]
[1751935476599,10.7560328,150.23,150.21,0.06]
[1751935476778,3.27177862,150.23,150.21,0.06]
[1751935478981,10.75709427,150.22,150.21,0.06]
[1751935481198,17.55615904,150.22,150.21,0.06]
[1751935481878,10.89925584,150.22,150.21,0.06]
[1751935483078,10.89806084,150.22,150.21,0.06]
[1751935485109,7.48412065,150.22,150.21,0.06]
[1751935485303,10.75589927,150.22,150.21,0.06]
[1751935485515,3.27177862,150.23,150.21,0.06]
[1751935485703,147.73,150.25,150.21,0.06]
[1751935485704,7.47998322,150.24,150.21,0.06]
[1751935485899,10.75176184,150.24,150.21,0.06]
[1751935486694,7.47998322,150.24,150.21,0.06]
[1751935486907,10.75176184,150.24,150.21,0.06]
[1751935487231,10.75176184,150.24,150.21,6.71734638]
[1751935489195,3.27177862,150.24,150.21,6.71734638]
[1751935493023,10.74983245,150.24,150.21,6.71734638]
[1751935493210,3.27177862,150.24,150.21,6.71734638]
[1751935494022,147.73,150.25,150.21,6.71734638]
[1751935494208,3.27177862,150.24,150.21,6.71734638]
[1751935494410,151.00177862,150.25,150.21,6.71734638]
[1751935495105,3.27177862,150.24,150.21,6.71734638]
[1751935495516,10.74941721,150.24,150.21,6.71734638]
[1751935495819,10.77941721,150.24,150.21,6.71734638]
[1751935499017,10.77941721,150.24,150.21,0.06]
[1751935501305,7.50763859,150.24,150.21,0.06]
[1751935501827,10.77941721,150.24,150.21,0.06]
[1751935510442,3.27177862,150.23,150.21,0.06]
[1751935510736,10.74941721,150.23,150.21,0.06]
[1751935510915,7.47763859,150.23,150.21,0.06]
[1751935511520,3.30177862,150.24,150.21,0.06]
[1751935511717,10.77940599,150.24,150.21,0.06]
[1751935513445,7.50762737,150.24,150.21,0.06]
[1751935513620,10.77940599,150.24,150.21,0.06]
[1751935515443,0.03,150.24,150.23,9.92823871]
[1751935515617,0.03,150.24,150.23,6.65646009]
[1751935517235,0.03,150.24,150.22,9.92853337]
[1751935517441,0.03,150.24,150.22,6.65675475]
[1751935519136,3.30177862,150.24,150.21,0.06]
[1751935519333,3.30177862,150.24,150.21,6.71719075]
[1751935519537,3.27177862,150.23,150.21,6.71719075]
[1751935520044,3.27177862,150.22,150.21,0.06]
[1751935522546,3.41394019,150.22,150.21,0.06]
[1751935522748,10.88876501,150.22,150.21,0.06]
[1751935523043,3.41394019,150.22,150.21,0.06]
[1751935523224,10.88876501,150.22,150.21,0.06]
[1751935527630,17.54566821,150.22,150.21,0.06]
[1751935527827,10.88876501,150.22,150.21,0.06]
[1751935528542,17.54566821,150.22,150.21,0.06]
[1751935530626,36.19531707,150.22,150.21,0.06]
[1751935534125,62.19531707,150.22,150.21,0.06]
[1751935534359,26.0,150.18,150.16,0.06]
[1751935534559,3.41394019,150.17,150.16,0.06]
[1751935537543,41.80982319,150.17,150.16,0.06]
[1751935537746,49.27188454,150.17,150.16,0.06]
[1751935537945,196.97188454,150.17,150.16,0.06]
[1751935538832,196.97188454,150.17,150.09,8.26588512]
[1751935538833,0.14216157,150.15,150.09,8.26588512]
[1751935539153,3.27177862,150.11,150.09,8.26588512]
[1751935539722,3.27177862,150.1,150.09,1.6033]
[1751935540126,3.27177862,150.1,150.08,7.06]
[1751935540325,43.00219934,150.15,150.08,13.723113]
[1751935540326,3.27177862,150.09,150.08,13.723113]
[1751935540551,3.27177862,150.1,150.08,6.663113]
[1751935541049,5.12105525,150.1,150.08,6.663113]
[1751935541425,5.12105525,150.1,150.06,0.2]
[1751935541426,5.12105525,150.1,150.07,6.663557]
[1751935543530,0.14216157,150.13,150.07,6.663557]
[1751935543839,36.2,150.15,150.07,6.663557]
[1751935544047,5.12105525,150.11,150.07,11.78461225]
[1751935544530,0.14216157,150.14,150.07,11.78461225]
[1751935544850,5.12105525,150.12,150.08,5.12105525]
[1751935545256,5.12105525,150.12,150.07,6.663557]
[1751935545437,5.12105525,150.12,150.08,5.12105525]
[1751935545639,147.7,150.17,150.11,5.12105525]
[1751935545846,152.82105525,150.17,150.13,5.12105525]
[1751935546241,147.7,150.17,150.13,5.12105525]
[1751935546551,5.12105525,150.17,150.13,5.12105525]
[1751935547050,5.12105525,150.19,150.14,5.12105525]
[1751935547252,5.12105525,150.19,150.15,5.12105525]
[1751935547770,5.15105525,150.22,150.17,5.12105525]
[1751935548138,5.15105525,150.22,150.16,8.30746313]
[1751935548358,5.12105525,150.21,150.17,5.12105525]
[1751935549258,5.12105525,150.21,150.16,13.42851838]
[1751935549740,5.12105525,150.2,150.16,13.42851838]
[1751935550572,5.12105525,150.2,150.16,8.30746313]
[1751935550859,5.12105525,150.2,150.16,13.42851838]
[1751935553033,26.03,150.22,150.16,13.42851838]
[1751935553252,5.12105525,150.2,150.16,8.30746313]
[1751935553773,5.12105525,150.18,150.16,1.6479]
[1751935553937,5.12105525,150.17,150.14,6.66038223]
[1751935554357,5.12105525,150.17,150.13,6.66089389]
[1751935555556,6.79954794,150.21,150.13,6.66089389]
[1751935555762,5.12105525,150.17,150.13,6.66089389]
[1751935555963,5.12105525,150.16,150.12,8.18158516]
[1751935556145,5.12105525,150.14,150.11,6.66150454]
[1751935556347,5.12105525,150.14,150.1,6.66222518]
[1751935557662,5.12105525,150.13,150.09,20.43235793]
[1751935557841,5.12105525,150.12,150.09,15.31130268]
[1751935558042,5.12105525,150.13,150.09,20.43235793]
[1751935558539,5.12105525,150.13,150.09,15.31130268]
[1751935558741,5.12105525,150.12,150.09,15.31130268]
[1751935559673,5.12105525,150.13,150.09,20.43235793]
[1751935560467,5.12105525,150.13,150.09,15.31130268]
[1751935560775,5.12105525,150.13,150.09,20.43235793]
[1751935561875,147.7,150.17,150.09,20.43235793]
[1751935561876,5.12105525,150.15,150.11,5.12105525]
[1751935562940,5.12105525,150.15,150.12,6.66133759]
[1751935563848,5.12105525,150.14,150.1,11.78328043]
[1751935564761,5.12105525,150.13,150.1,6.66222518]
[1751935565275,0.03,150.16,150.1,6.66222518]
[1751935565469,5.12105525,150.12,150.09,15.31132893]
[1751935565772,5.12105525,150.11,150.09,15.31132893]
[1751935566964,5.12105525,150.11,150.09,7.06]
[1751935567168,5.12105525,150.11,150.08,6.72297431]
[1751935568354,5.12105525,150.1,150.08,0.06]
[1751935568567,5.12105525,150.09,150.08,0.06]
[1751935568963,5.12105525,150.1,150.08,0.06]
[1751935569166,5.12105525,150.09,150.08,0.06]
[1751935571451,7.60136004,150.14,150.08,5.18105525]
[1751935571676,7.60136004,150.14,150.08,0.06]
[1751935571677,5.12105525,150.12,150.08,0.06]
[1751935572177,5.12105525,150.11,150.08,0.06]
[1751935573570,5.12105525,150.1,150.08,0.06]
[1751935575954,5.12105525,150.09,150.08,0.06]
[1751935581186,173.84216157,150.13,150.08,0.06]
[1751935581481,5.12105525,150.1,150.08,0.06]
[1751935581683,5.12105525,150.11,150.08,0.06]
[1751935582563,5.12105525,150.11,150.06,11.90493431]
[1751935583564,5.12105525,150.12,150.07,5.12105525]
[1751935583962,5.12105525,150.11,150.07,5.12105525]
[1751935585578,5.12105525,150.11,150.07,11.7842736]
[1751935585774,5.12105525,150.11,150.07,6.66321835]
[1751935585980,5.12105525,150.11,150.07,11.7842736]
[1751935587075,5.12105525,150.11,150.07,6.66321835]
[1751935587461,5.12105525,150.08,150.06,0.12]
[1751935588071,0.14216157,150.12,150.06,0.12]
[1751935588072,5.12105525,150.07,150.06,0.12]
[1751935602593,68.39942268,150.07,150.06,0.12]
[1751935602897,57.21047244,150.07,150.06,0.12]
[1751935603687,50.54691544,150.07,150.06,0.12]
[1751935603891,57.21047244,150.07,150.06,0.12]
[1751935607085,49.74977382,150.07,150.06,0.12]
[1751935607915,68.39942268,150.07,150.06,0.12]
[1751935611191,23.91286568,150.06,150.05,0.2]
[1751935611879,30.46976568,150.06,150.05,0.2]
[1751935613093,30.46976568,150.06,150.01,0.2]
[1751935613094,53.7937694,150.06,150.01,0.2]
[1751935613402,5.12105525,150.02,150.01,0.2]
[1751935613710,15.46321682,150.02,150.01,0.2]
[1751935615103,22.12899471,150.02,150.01,0.2]
[1751935615299,26.0,150.02,150.01,0.2]
[1751935615497,31.12105525,150.02,150.01,0.2]
[1751935622586,26.0,150.02,150.01,0.2]
[1751935622786,31.12105525,150.02,150.01,0.2]
[1751935627215,26.0,150.02,150.01,0.2]
[1751935627416,31.12105525,150.02,150.01,0.2]
[1751935640929,28.87149858,150.02,150.01,0.2]
[1751935642039,35.67943804,150.02,150.01,0.2]
[1751935642607,29.01366015,150.02,150.01,0.2]
[1751935644727,147.73,150.05,150.01,3.07149858]
[1751935644926,0.03,150.05,150.02,2.87149858]
[1751935645128,0.03,150.05,150.04,2.87149858]
[1751935645628,0.03,150.05,150.04,4.46509858]
[1751935646514,0.03,150.05,150.04,11.12998794]
[1751935646911,0.03,150.05,150.04,13.37983185]
[1751935647710,0.03,150.05,150.04,32.02948071]
[1751935667161,0.03,150.05,150.04,32.17164228]
[1751935667466,0.03,150.09,150.08,18.64964886]
[1751935667628,0.03,150.09,150.08,33.97099135]
[1751935668462,0.03,150.09,150.08,39.23449541]
[1751935668756,0.03,150.16,150.09,0.14216157]
[1751935668937,0.03,150.16,150.14,5.12134249]
[1751935669134,0.03,150.16,150.14,15.30134249]
[1751935670032,0.03,150.16,150.14,10.18]
[1751935670231,5.15134249,150.16,150.14,10.18]
[1751935670435,5.15134249,150.16,150.12,10.18]
[1751935670658,5.12134249,150.15,150.12,10.18]
[1751935670841,5.12134249,150.14,150.12,10.18]
[1751935672354,0.03,150.16,150.12,10.18]
[1751935672547,5.12134249,150.15,150.12,10.18]
[1751935674456,5.15134249,150.15,150.12,10.18]
[1751935676268,5.12134249,150.14,150.12,10.18]
[1751935676558,5.15134249,150.15,150.12,10.18]
[1751935676767,5.15134249,150.15,150.11,6.66169124]
[1751935677069,5.15134249,150.15,150.1,11.78338181]
[1751935681276,5.15134249,150.15,150.11,11.78311476]
[1751935683572,5.15134249,150.15,150.11,5.12134249]
[1751935684655,5.15134249,150.15,150.1,6.66202403]
[1751935684855,5.15134249,150.15,150.11,5.12134249]
[1751935685673,0.03,150.15,150.14,5.12134249]
[1751935687577,0.03,150.15,150.14,11.78179273]
[1751935695667,0.03,150.15,150.13,6.66049283]
[1751935695865,0.03,150.15,150.12,6.66116962]
[1751935695866,5.15134249,150.15,150.12,6.66116962]
[1751935696291,5.12134249,150.14,150.1,5.12134249]
[1751935696502,5.12134249,150.14,150.08,6.663113]
[1751935696675,5.12134249,150.11,150.07,6.66334942]
[1751935696989,5.12134249,150.11,150.06,18.64964886]
[1751935696990,5.12134249,150.09,150.06,6.66383145]
[1751935697780,5.12134249,150.08,150.05,13.68428511]
[1751935698000,5.12134249,150.06,150.03,6.72504192]
[1751935698159,5.12134249,150.06,150.03,0.06]
[1751935700794,5.12134249,150.07,150.03,0.06]
[1751935702693,5.12134249,150.05,150.03,0.06]
[1751935702904,0.14216157,150.09,150.03,0.06]
[1751935702905,5.12134249,150.04,150.03,0.06]
[1751935703184,26.0,150.11,150.03,5.18134249]
[1751935703394,5.12134249,150.1,150.06,5.12134249]
[1751935703769,5.12134249,150.1,150.05,5.12134249]
[1751935704485,5.12134249,150.1,150.05,11.78554382]
[1751935705596,5.12134249,150.09,150.05,11.78554382]
[1751935705970,5.12134249,150.09,150.05,5.12134249]
[1751935706170,26.0,150.11,150.05,5.12134249]
[1751935706387,14.82910401,150.12,150.07,11.7848477]
[1751935706388,13.28904249,150.12,150.07,11.7848477]
[1751935706578,13.28904249,150.12,150.07,5.12134249]
[1751935706881,8.1677,150.12,150.08,5.12134249]
[1751935707084,31.12134249,150.13,150.08,5.12134249]
[1751935707289,5.12134249,150.13,150.09,5.12134249]
[1751935707490,5.12134249,150.13,150.08,5.12134249]
[1751935707688,26.0,150.14,150.08,5.12134249]
[1751935707998,5.15134249,150.15,150.11,5.12134249]
[1751935708178,0.03,150.15,150.12,5.12134249]
[1751935708370,5.15134249,150.15,150.1,5.12134249]
[1751935708579,5.12134249,150.14,150.1,5.12134249]
[1751935708880,5.12134249,150.14,150.09,11.78379874]
[1751935710193,5.15134249,150.15,150.1,5.12134249]
[1751935710498,5.15134249,150.15,150.1,11.78351501]
[1751935712071,5.12134249,150.14,150.1,5.12134249]
[1751935712395,5.12134249,150.14,150.09,11.78382607]
[1751935714197,0.03,150.15,150.08,11.78427093]
[1751935714198,5.12134249,150.12,150.08,11.78427093]
[1751935715197,5.12134249,150.12,150.07,26.0]
[1751935715198,5.12134249,150.11,150.07,5.12134249]
[1751935716278,5.12134249,150.11,150.06,28.98525962]
[1751935716479,5.12134249,150.12,150.07,5.12134249]
[1751935717611,5.12134249,150.12,150.07,11.78460791]
[1751935718695,5.12134249,150.11,150.07,11.78460791]
[1751935718998,5.12134249,150.11,150.07,5.12134249]
[1751935721603,6.69051694,150.14,150.07,5.12134249]
[1751935721787,5.12134249,150.11,150.07,5.12134249]
[1751935722783,5.12134249,150.11,150.06,13.68383803]
[1751935722982,5.12134249,150.11,150.07,5.12134249]
[1751935723183,5.12134249,150.1,150.06,18.80518052]
[1751935723378,5.12134249,150.1,150.06,12.14134249]
[1751935723585,5.12134249,150.09,150.06,7.02]
[1751935729407,6.3797,150.11,150.06,13.68395534]
[1751935729591,5.12134249,150.09,150.06,13.68395534]
[1751935729792,5.12134249,150.09,150.06,7.02]
[1751935731210,6.3797,150.11,150.06,7.02]
[1751935731397,5.12134249,150.09,150.06,7.02]
[1751935731990,5.12134249,150.09,150.05,11.7855825]
[1751935734688,5.12134249,150.07,150.03,5.18134249]
[1751935734894,5.12134249,150.07,150.04,10.18]
[1751935735088,7.45851253,150.1,150.04,15.30134249]
[1751935735409,5.12134249,150.1,150.05,5.12134249]
[1751935736403,5.12134249,150.1,150.05,15.30134249]
[1751935736714,5.12134249,150.1,150.05,16.84410081]
[1751935736914,5.12134249,150.1,150.05,21.9654433]
[1751935737411,5.12134249,150.08,150.05,10.18]
[1751935737613,5.12134249,150.06,150.03,0.06]
[1751935737820,5.12134249,150.07,150.03,6.72529184]
[1751935738003,5.12134249,150.08,150.03,11.84663433]
[1751935740322,5.12134249,150.08,150.04,5.12134249]
[1751935740536,5.12134249,150.08,150.04,11.7861452]
[1751935740721,6.2646,150.03,149.91,18.37501499]
[1751935740900,26.0,149.99,149.88,0.2]
[1751935741094,10.24268498,149.92,149.88,0.2]
[1751935741321,26.0,149.89,149.88,0.2]
[1751935741528,43.72585796,149.89,149.88,0.2]
[1751935741729,26.0,149.85,149.8,0.06]
[1751935741900,31.12134249,149.81,149.8,0.06]
[1751935742222,38.60451547,149.81,149.8,0.06]
[1751935742534,50.40097978,149.81,149.69,5.1]
[1751935742821,26.0,149.73,149.69,5.1]
[1751935743026,7.72305536,149.7,149.69,5.1]
[1751935743232,33.72305536,149.7,149.69,5.1]
[1751935743525,41.12243576,149.7,149.69,5.1]
[1751935743707,33.3993804,149.7,149.69,5.1]
[1751935743897,7.3993804,149.7,149.69,5.1]
[1751935744100,7.72305536,149.72,149.69,5.1]
[1751935744305,7.72305536,149.7,149.69,5.1]
[1751935744601,48.08,149.75,149.69,5.1]
[1751935744805,7.72305536,149.71,149.69,5.1]
[1751935745222,7.72305536,149.72,149.69,5.1]
[1751935745630,26.0,149.75,149.69,5.1]
[1751935745824,7.35742249,149.74,149.69,5.1]
[1751935745999,7.35742249,149.74,149.69,12.82305536]
[1751935746000,7.35742249,149.73,149.69,12.82305536]
[1751935746195,26.0,149.75,149.7,7.72305536]
[1751935746196,48.04,149.75,149.7,7.72305536]
[1751935746400,7.34123365,149.74,149.71,7.72305536]
[1751935746631,7.34123365,149.73,149.71,7.72305536]
[1751935746834,48.04,149.75,149.71,7.72305536]
[1751935747001,7.34142925,149.74,149.71,7.72305536]
[1751935747195,48.04,149.75,149.71,7.72305536]
[1751935747196,7.34142925,149.73,149.71,7.72305536]
[1751935747435,33.72305536,149.75,149.7,7.72305536]
[1751935747436,7.34142925,149.72,149.7,7.72305536]
[1751935747729,7.34142925,149.72,149.69,5.1]
[1751935747730,7.32681616,149.71,149.69,5.1]
[1751935747932,15.04987152,149.7,149.69,5.1]
[1751935748098,7.32681616,149.7,149.69,5.1]
[1751935748299,15.04987152,149.7,149.69,5.1]
[1751935748620,7.32681616,149.7,149.69,5.1]
[1751935748818,15.04987152,149.7,149.69,5.1]
[1751935749015,59.84168195,149.7,149.69,5.1]
[1751935749326,33.84168195,149.7,149.69,5.1]
[1751935749512,33.84168195,149.7,149.69,3.8934]
[1751935749696,33.84168195,149.7,149.67,0.2]
[1751935749697,18.64964886,149.68,149.67,0.2]
[1751935749900,26.0,149.64,149.6,3.48764927]
[1751935750102,7.72305536,149.62,149.6,3.48764927]
[1751935750322,7.72305536,149.61,149.6,3.48764927]
[1751935750526,33.72305536,149.61,149.54,9.32365536]
[1751935750823,7.72305536,149.59,149.58,3.48829839]
[1751935751032,29.74305536,149.59,149.58,3.48829839]
[1751935751332,29.74305536,149.59,149.56,3.48857336]
[1751935752206,22.02,149.59,149.56,3.48857336]
[1751935752509,22.02,149.59,149.56,11.21162872]
[1751935752713,22.02,149.59,149.56,3.48857336]
[1751935753219,29.74305536,149.59,149.56,3.48857336]
[1751935753401,7.72305536,149.58,149.56,3.48857336]
[1751935753798,7.72305536,149.57,149.56,3.48857336]
[1751935754001,7.72305536,149.57,149.5,6.68896321]
[1751935754002,33.72305536,149.57,149.5,6.68896321]
[1751935754228,33.72305536,149.57,149.55,3.48873007]
[1751935754520,33.72305536,149.57,149.52,7.72305536]
[1751935754721,7.72305536,149.56,149.51,6.68842015]
[1751935754930,7.72305536,149.56,149.53,3.4891171]
[1751935755111,29.70305536,149.55,149.53,3.4891171]
[1751935755312,21.98,149.55,149.53,3.4891171]
[1751935756612,21.98,149.55,149.54,6.687174]
[1751935756922,157.01442879,149.73,149.54,14.41022936]
[1751935756923,7.72305536,149.61,149.54,14.41022936]
[1751935757124,10.98,149.6,149.56,7.72305536]
[1751935757316,10.98,149.6,149.54,6.687174]
[1751935757627,36.98,149.6,149.56,7.72305536]
[1751935757833,44.70305536,149.6,149.55,7.72305536]
[1751935758039,7.72305536,149.57,149.53,6.68755334]
[1751935758211,7.72305536,149.56,149.53,6.68755334]
[1751935758630,10.98,149.55,149.52,6.68806848]
[1751935758929,7.72305536,149.54,149.49,14.41246602]
[1751935759310,7.72305536,149.54,149.49,6.68941066]
[1751935759513,7.72305536,149.54,149.49,14.41246602]
[1751935759918,7.72305536,149.54,149.49,6.68941066]
[1751935760123,7.72305536,149.54,149.49,14.41246602]
[1751935760327,7.72305536,149.54,149.5,3.48936612]
[1751935760608,7.72305536,149.53,149.51,6.68851581]
[1751935761128,10.98,149.55,149.51,6.68851581]
[1751935761507,10.98,149.55,149.5,10.17827074]
[1751935761707,7.72305536,149.51,149.46,7.72305536]
[1751935762008,18.68305536,149.5,149.47,3.49001798]
[1751935762209,7.72305536,149.5,149.47,3.49001798]
[1751935762414,44.68305536,149.51,149.47,3.49001798]
[1751935762912,44.68305536,149.51,149.48,6.68985817]
[1751935763108,10.94,149.5,149.48,6.68985817]
[1751935763331,10.94,149.5,149.47,6.69026826]
[1751935763531,18.66305536,149.5,149.47,6.69026826]
[1751935763736,18.66305536,149.5,149.47,10.18036179]
[1751935764030,10.94,149.5,149.47,10.18036179]
[1751935764422,18.66305536,149.5,149.47,10.18036179]
[1751935765237,10.94,149.5,149.47,34.62918151]
[1751935765425,36.94,149.51,149.47,26.90612615]
[1751935765623,36.94,149.51,149.47,34.62918151]
[1751935765824,36.94,149.51,149.47,26.90612615]
[1751935766024,26.0,149.51,149.47,26.90612615]
[1751935766270,10.94,149.5,149.47,26.96612615]
[1751935766429,10.92,149.5,149.47,26.96612615]
[1751935767112,10.92,149.5,149.47,10.24036179]
[1751935767313,26.0,149.48,149.47,0.06]
[1751935767636,26.0,149.48,149.47,6.75030083]
[1751935767834,10.92,149.5,149.47,6.75030083]
[1751935768016,8.16,149.54,149.47,14.47335619]
[1751935768017,18.79181043,149.54,149.47,14.47335619]
[1751935768335,26.0,149.5,149.47,31.19912055]
[1751935768535,8.16,149.57,149.49,7.72305536]
[1751935768741,7.72305536,149.55,149.5,7.72305536]
[1751935768934,10.92,149.54,149.47,23.47606519]
[1751935769140,18.64305536,149.54,149.5,7.72305536]
[1751935769339,18.64305536,149.54,149.51,6.68851581]
[1751935769532,10.92,149.54,149.51,6.68851581]
[1751935771342,18.64305536,149.54,149.5,6.68896321]
[1751935772254,7.72305536,149.51,149.5,6.68896321]
[1751935772424,26.0,149.55,149.5,6.68896321]
[1751935772625,10.9,149.54,149.5,6.68896321]
[1751935773035,18.62305536,149.54,149.5,6.68896321]
[1751935773344,7.72305536,149.53,149.48,6.68985817]
[1751935773791,7.72305536,149.51,149.48,6.68985817]
[1751935773925,7.72305536,149.49,149.47,6.75016479]
[1751935774125,18.62305536,149.48,149.47,6.75016479]
[1751935774639,10.9,149.48,149.47,6.75016479]
[1751935775426,10.9,149.48,149.47,0.06]
[1751935776956,44.64964886,149.53,149.47,7.78305536]
[1751935777133,10.88,149.52,149.48,7.72305536]
[1751935777332,18.60305536,149.52,149.48,6.68985817]
[1751935778360,10.88,149.51,149.48,6.68985817]
[1751935778544,18.60305536,149.51,149.48,6.68985817]
[1751935779732,7.72305536,149.51,149.48,6.68985817]
[1751935779927,10.86,149.5,149.48,23.4145036]
[1751935781357,7.72305536,149.52,149.48,23.4145036]
[1751935781663,10.86,149.51,149.48,23.4145036]
[1751935782247,7.72305536,149.52,149.48,23.4145036]
[1751935782443,10.84,149.5,149.48,23.4145036]
[1751935783041,7.72305536,149.54,149.49,7.72305536]
[1751935783363,8.12,149.55,149.5,7.72305536]
[1751935783664,15.84305536,149.55,149.5,14.41201857]
[1751935783964,15.84305536,149.55,149.5,6.68896321]
[1751935783965,18.56305536,149.54,149.5,6.68896321]
[1751935784177,10.84,149.54,149.5,31.13442659]
[1751935784664,10.84,149.54,149.5,23.41137123]
[1751935784868,7.72305536,149.55,149.5,31.13442659]
[1751935785066,18.79181043,149.57,149.5,31.13442659]
[1751935785265,33.72305536,149.56,149.51,7.72305536]
[1751935785567,10.82,149.55,149.52,6.68806848]
[1751935786348,18.54305536,149.55,149.52,6.68806848]
[1751935786574,26.0,149.56,149.52,23.40823969]
[1751935786755,147.7,149.62,149.52,31.13129505]
[1751935786956,18.64964886,149.6,149.53,7.72305536]
[1751935787162,7.72305536,149.58,149.53,7.72305536]
[1751935787564,10.82,149.57,149.54,23.405109]
[1751935787749,7.72305536,149.58,149.54,23.405109]
[1751935788261,28.30981986,149.63,149.54,23.405109]
[1751935788563,7.72305536,149.62,149.54,23.405109]
[1751935788767,10.8,149.62,149.58,7.72305536]
[1751935789155,10.8,149.61,149.58,7.72305536]
[1751935789555,20.5867645,149.63,149.59,6.68493883]
[1751935789759,12.4667645,149.63,149.59,6.68493883]
[1751935790055,12.4667645,149.63,149.59,23.39728591]
[1751935790262,10.8,149.62,149.61,7.72305536]